bitfinex/quotes_SOLUSD_20240921
["timestamp","ask_amount","ask_price","bid_price","bid_amount"]
[1726940107155,15.8960559,148.44,148.4,23.5842]
[1726940111678,20.57691211,148.43,148.38,6.739]
[1726940111859,26.86299,148.43,148.38,6.739]
[1726940113758,7.18912211,148.42,148.38,6.739]
[1726940114101,7.18912211,148.42,148.37,16.8491]
[1726940114102,6.98908,148.41,148.37,23.5888]
[1726940114281,0.45142211,148.4,148.37,16.8491]
[1726940114482,7.18992211,148.4,148.37,16.8491]
[1726940114778,0.12549,148.39,148.36,6.7402]
[1726940114976,0.45142211,148.38,148.36,6.7402]
[1726940115188,0.12549,148.4,148.36,6.7402]
[1726940115561,6.2921,148.41,148.36,16.8501]
[1726940115965,6.2921,148.41,148.35,1.34806938]
[1726940115966,20.0,148.43,148.38,16.8479]
[1726940117180,0.45142211,148.42,148.39,6.7389]
[1726940119585,0.45142211,148.42,148.38,23.5872]
[1726940119786,0.12549,148.4,148.37,6.7398]
[1726940123868,7.31551211,148.4,148.36,6.7403]
[1726940124287,6.86409,148.4,148.36,6.7403]
[1726940124662,0.45142211,148.39,148.36,6.7403]
[1726940124862,0.45142211,148.39,148.33,6.7417]
[1726940124863,6.99078,148.38,148.33,6.7417]
[1726940125077,0.12549,148.36,148.33,6.7417]
[1726940125277,0.45142211,148.35,148.33,6.7417]
[1726940126088,0.25098,148.36,148.33,6.7417]
[1726940127587,6.99218,148.34,148.3,6.992464]
[1726940127792,0.45142211,148.33,148.3,0.249764]
[1726940128088,0.45142211,148.33,148.3,6.992664]
[1726940128262,0.12549,148.32,148.3,0.249764]
[1726940128986,0.25098,148.32,148.3,0.249764]
[1726940129194,6.7426,148.31,148.3,0.249764]
[1726940129375,27.44500211,148.31,148.3,0.249764]
[1726940129694,20.70240211,148.31,148.3,0.249764]
[1726940129865,20.25098,148.31,148.3,0.249764]
[1726940132187,20.25098,148.31,148.3,6.992764]
[1726940132692,21.7793,148.34,148.3,6.992764]
[1726940132693,21.7793,148.34,148.3,0.249764]
[1726940132983,20.25098,148.33,148.3,6.992764]
[1726940134874,20.25098,148.33,148.3,0.249764]
[1726940136891,0.45142211,148.32,148.3,0.249764]
[1726940138184,20.25098,148.33,148.3,0.249764]
[1726940138600,0.25098,148.31,148.3,0.249764]
[1726940139994,20.25098,148.31,148.3,0.249764]
[1726940142596,20.0,148.31,148.3,0.249764]
[1726940143093,20.25098,148.33,148.3,0.249764]
[1726940143599,20.25098,148.33,148.3,6.992664]
[1726940143810,15.038,148.38,148.3,17.106964]
[1726940143981,21.7778,148.38,148.32,6.7417]
[1726940145383,6.7381,148.41,148.36,6.7399]
[1726940145582,6.7381,148.41,148.33,1.34841131]
[1726940145583,6.7381,148.41,148.37,6.7398]
[1726940145902,15.9451,148.42,148.37,6.7398]
[1726940146281,22.6829,148.42,148.37,6.7398]
[1726940146890,0.12549,148.41,148.37,6.7398]
[1726940147098,26.98908,148.41,148.37,6.7398]
[1726940147407,0.45142211,148.4,148.36,6.7402]
[1726940151198,0.45142211,148.4,148.37,6.7398]
[1726940151405,26.98908,148.41,148.37,6.7398]
[1726940152407,0.45142211,148.4,148.37,6.7398]
[1726940153107,26.98908,148.41,148.37,6.7398]
[1726940153597,0.45142211,148.4,148.37,6.7398]
[1726940154108,26.98908,148.41,148.37,6.7398]
[1726940157100,0.45142211,148.4,148.37,6.7398]
[1726940157485,0.45142211,148.4,148.36,6.7402]
[1726940157686,20.25098,148.39,148.35,6.7407]
[1726940157902,0.45142211,148.38,148.35,6.7407]
[1726940159192,20.25098,148.39,148.35,6.7407]
[1726940160215,26.7381,148.41,148.34,16.8522]
[1726940160502,0.25098,148.4,148.36,6.7402]
[1726940162107,0.25098,148.4,148.32,33.7108]
[1726940162409,20.0,148.41,148.37,6.7395]
[1726940162623,0.45142211,148.4,148.37,6.7395]
[1726940164213,20.0,148.41,148.37,6.7395]
[1726940165210,0.45142211,148.4,148.37,6.7395]
[1726940165603,20.0,148.41,148.37,6.7395]
[1726940165992,0.45142211,148.4,148.36,23.5902]
[1726940167014,0.25098,148.4,148.36,23.5902]
[1726940173817,20.0,148.41,148.37,6.7397]
[1726940173995,24.52921486,148.46,148.38,16.8478]
[1726940174201,6.7366,148.45,148.4,6.7381]
[1726940174515,6.7366,148.45,148.41,6.738]
[1726940175801,0.2264459,148.44,148.41,6.738]
[1726940176200,0.1009559,148.44,148.41,6.738]
[1726940176402,0.1009559,148.44,148.43,6.7371]
[1726940179221,0.1009559,148.44,148.42,16.8432]
[1726940179606,0.1009559,148.44,148.42,23.5807]
[1726940181642,19.8507777,148.46,148.42,23.5807]
[1726940182518,19.8507777,148.46,148.43,6.737]
[1726940182727,6.8031007,148.48,148.43,6.737]
[1726940183024,0.12549,148.47,148.44,6.7366]
[1726940183219,0.0681007,148.48,148.44,6.7366]
[1726940183412,0.1935907,148.48,148.45,6.7362]
[1726940183823,20.0681007,148.48,148.45,6.7362]
[1726940185640,0.45142211,148.47,148.44,6.7366]
[1726940186305,0.0681007,148.48,148.44,16.8412]
[1726940186524,0.0681007,148.48,148.46,6.7354]
[1726940187229,0.0681007,148.48,148.45,6.7361]
[1726940188114,0.0681007,148.48,148.46,6.7357]
[1726940191126,0.0681007,148.48,148.47,23.5737]
[1726940192212,0.0681007,148.48,148.47,47.350584]
[1726940192718,0.0681007,148.48,148.47,67.350584]
[1726940193334,0.0681007,148.48,148.47,67.601564]
[1726940194130,0.0681007,148.48,148.47,67.350584]
[1726940194322,0.0681007,148.48,148.47,68.69699957]
[1726940195933,0.0681007,148.48,148.47,67.350584]
[1726940196111,0.0681007,148.48,148.47,47.350584]
[1726940197932,0.0681007,148.48,148.47,48.69724389]
[1726940198316,0.0681007,148.48,148.47,47.350584]
[1726940198514,0.0681007,148.48,148.47,23.5737]
[1726940200544,0.0681007,148.48,148.46,6.7357]
[1726940207525,0.0681007,148.48,148.47,8.08239657]
[1726940208049,0.0681007,148.48,148.47,6.7353]
[1726940215950,0.0681007,148.48,148.46,23.5744]
[1726940216155,0.0681007,148.48,148.46,16.8387]
[1726940216452,0.0681007,148.48,148.46,23.5743]
[1726940218353,0.0681007,148.48,148.46,16.8387]
[1726940221235,0.0681007,148.48,148.46,23.5744]
[1726940222157,0.0681007,148.48,148.43,16.8424]
[1726940222342,0.0681007,148.48,148.44,6.7365]
[1726940227161,0.0681007,148.48,148.45,6.7362]
[1726940227462,0.0681007,148.48,148.46,6.7357]
[1726940228658,0.0681007,148.48,148.47,6.7353]
[1726940231969,0.0681007,148.48,148.47,8.08236045]
[1726940232265,0.0681007,148.48,148.47,6.7353]
[1726940235060,0.0681007,148.48,148.47,31.85899822]
[1726940235249,0.0681007,148.48,148.47,51.85899822]
[1726940235446,0.0681007,148.48,148.47,50.512184]
[1726940236247,0.0681007,148.48,148.47,51.85887204]
[1726940236654,0.0681007,148.48,148.47,50.512184]
[1726940237667,0.0681007,148.48,148.47,51.85873864]
[1726940238662,0.0681007,148.48,148.47,50.512184]
[1726940239464,0.0681007,148.48,148.47,6.7353]
[1726940242365,0.0681007,148.48,148.47,30.512184]
[1726940242744,0.0681007,148.48,148.47,6.7353]
[1726940243567,0.0681007,148.48,148.46,6.7357]
[1726940245049,0.0681007,148.48,148.45,16.8401]
[1726940245660,0.0681007,148.48,148.46,6.7356]
[1726940247071,0.0681007,148.48,148.47,6.7353]
[1726940249372,0.0681007,148.48,148.46,6.7357]
[1726940250676,0.0681007,148.48,148.47,6.7353]
[1726940260272,0.0681007,148.48,148.46,6.7357]
[1726940261868,0.0681007,148.48,148.47,6.7353]
[1726940262986,0.0681007,148.48,148.47,30.512184]
[1726940263582,0.0681007,148.48,148.47,31.858854]
[1726940264781,0.0681007,148.48,148.47,30.512184]
[1726940267386,0.0681007,148.48,148.47,31.85893323]
[1726940269394,0.0681007,148.48,148.47,51.85893323]
[1726940269797,0.0681007,148.48,148.47,50.512184]
[1726940270287,0.0681007,148.48,148.47,84.314474]
[1726940270598,0.0681007,148.48,148.47,85.66104171]
[1726940270902,0.0681007,148.48,148.47,84.314474]
[1726940271193,0.0014008,148.48,148.47,84.314474]
[1726940271896,0.0014008,148.48,148.47,85.66096918]
[1726940272894,0.0014008,148.48,148.47,84.314474]
[1726940273995,0.0014008,148.48,148.47,84.188984]
[1726940274199,0.0014008,148.48,148.47,60.4121]
[1726940275391,0.0014008,148.48,148.47,84.188984]
[1726940275998,0.0014008,148.48,148.47,64.188984]
[1726940276175,0.0014008,148.48,148.47,84.188984]
[1726940278198,0.0014008,148.48,148.47,85.53561836]
[1726940278380,0.0014008,148.48,148.47,85.66110836]
[1726940278784,0.0014008,148.48,148.47,85.78659836]
[1726940280306,0.0014008,148.48,148.47,101.78709836]
[1726940285111,0.0014008,148.48,148.47,100.440464]
[1726940286095,0.0014008,148.48,148.47,101.78672926]
[1726940286605,0.0014008,148.48,148.47,100.440464]
[1726940286793,0.0014008,148.48,148.47,101.78673086]
[1726940287213,0.0014008,148.48,148.47,100.440464]
[1726940288808,0.0014008,148.48,148.47,60.4121]
[1726940289391,0.0014008,148.48,148.47,61.75866722]
[1726940290513,0.0014008,148.48,148.47,85.53555122]
[1726940290702,0.0014008,148.48,148.47,84.188984]
[1726940291887,0.0014008,148.48,148.47,85.78653123]
[1726940292094,0.0014008,148.48,148.47,84.439964]
[1726940295107,0.0014008,148.48,148.47,85.78638934]
[1726940297089,0.0014008,148.48,148.47,84.439964]
[1726940300604,0.0014008,148.48,148.47,85.78634091]
[1726940300916,0.0014008,148.48,148.47,84.439964]
[1726940301218,0.0014008,148.48,148.47,85.78628113]
[1726940301816,0.0014008,148.48,148.47,108.89108113]
[1726940302024,9.29e-05,148.5,148.49,67.598364]
[1726940302320,9.29e-05,148.5,148.49,78.41682405]
[1726940303700,9.29e-05,148.5,148.49,77.07078551]
[1726940304326,0.3507488,148.54,148.49,77.07078551]
[1726940304327,4.17e-05,148.54,148.53,67.592064]
[1726940306330,4.17e-05,148.54,148.53,101.255264]
[1726940306833,14.0948353,148.6,148.59,6.7299]
[1726940309010,14.0948353,148.6,148.59,8.07570034]
[1726940309237,11.5948353,148.6,148.59,6.7299]
[1726940314123,11.5948353,148.6,148.58,23.5561]
[1726940314322,11.5948353,148.6,148.58,16.8259]
[1726940315516,11.5948353,148.6,148.59,6.7299]
[1726940315919,11.5948353,148.6,148.58,16.8259]
[1726940316113,6.6326,148.59,148.57,6.7304]
[1726940318740,7.08402211,148.59,148.56,6.7311]
[1726940319807,6.6326,148.59,148.55,23.5606]
[1726940320211,6.6326,148.59,148.57,6.7306]
[1726940325927,20.3507488,148.63,148.6,6.7293]
[1726940326420,20.3507488,148.63,148.61,6.7289]
[1726940326624,0.3507488,148.63,148.62,6.7285]
[1726940328953,0.3507488,148.63,148.62,8.07409515]
[1726940329260,0.3507488,148.63,148.62,6.7285]
[1726940337255,0.3507488,148.63,148.61,23.5506]
[1726940342243,21.8957488,148.64,148.61,23.5506]
[1726940343259,0.45142211,148.63,148.61,16.8217]
[1726940343459,6.85429,148.62,148.58,16.8253]
[1726940343664,0.57691211,148.61,148.58,16.8253]
[1726940345061,0.12549,148.61,148.58,16.8253]
[1726940345247,0.12549,148.61,148.58,23.5555]
[1726940345761,6.7281,148.63,148.58,23.5555]
[1726940345936,20.12549,148.62,148.58,23.5555]
[1726940349064,20.0,148.63,148.6,6.7294]
[1726940349363,20.45142211,148.63,148.6,6.7294]
[1726940350936,20.0,148.63,148.6,6.7294]
[1726940353349,21.8957488,148.64,148.61,1.34579038]
[1726940353551,15.9334,148.64,148.61,1.34579038]
[1726940353852,0.0681007,148.65,148.6,16.823]
[1726940353853,0.0681007,148.65,148.62,6.7282]
[1726940356955,0.45142211,148.64,148.61,6.7289]
[1726940357160,0.45142211,148.64,148.6,23.5524]
[1726940357354,0.12549,148.63,148.6,16.823]
[1726940357670,0.45142211,148.62,148.6,16.823]
[1726940358569,0.57691211,148.63,148.6,16.823]
[1726940359448,0.12549,148.63,148.6,16.823]
[1726940361070,0.57691211,148.63,148.6,16.823]
[1726940362577,7.30511211,148.63,148.59,6.7295]
[1726940363947,6.85369,148.63,148.59,6.7295]
[1726940364475,0.12549,148.63,148.6,6.7293]
[1726940364774,0.57691211,148.63,148.59,23.5541]
[1726940366175,0.12549,148.63,148.59,23.5541]
[1726940366353,0.12549,148.63,148.6,6.7294]
[1726940367665,0.57691211,148.63,148.6,6.7294]
[1726940368659,0.12549,148.63,148.6,6.7294]
[1726940370779,6.5119,148.64,148.61,6.7289]
[1726940371074,6.96332211,148.64,148.61,6.7289]
[1726940371578,6.5119,148.64,148.61,6.7289]
[1726940381386,6.5119,148.64,148.6,6.7293]
[1726940381588,0.45142211,148.63,148.6,6.7293]
[1726940384476,6.5119,148.64,148.6,6.7293]
[1726940384680,6.96332211,148.64,148.6,6.7293]
[1726940385588,6.5119,148.64,148.6,6.7293]
[1726940386570,6.5119,148.64,148.61,6.7289]
[1726940389987,20.0681007,148.65,148.64,6.7276]
[1726940390589,0.0681007,148.65,148.63,6.728]
[1726940395091,0.64501281,148.65,148.62,6.7285]
[1726940395687,0.1935907,148.65,148.62,6.7285]
[1726940399392,0.0681007,148.65,148.62,6.7285]
[1726940400371,0.0681007,148.65,148.63,6.7279]
[1726940400873,0.0681007,148.65,148.64,6.7276]
[1726940403396,0.0681007,148.65,148.63,6.728]
[1726940412010,0.0681007,148.65,148.61,16.8219]
[1726940412515,0.0681007,148.65,148.61,23.5505]
[1726940413009,0.0681007,148.65,148.62,6.7285]
[1726940413224,0.0681007,148.65,148.49,51.17131934]
[1726940413225,6.7304,148.58,148.54,16.8298]
[1726940413389,0.12549,148.6,148.54,16.8298]
[1726940413589,0.57691211,148.6,148.56,6.7311]
[1726940413892,0.57691211,148.6,148.56,6.7312]
[1726940414097,0.12549,148.59,148.55,6.7317]
[1726940415399,0.57691211,148.59,148.55,6.7317]
[1726940415608,0.12549,148.58,148.54,23.5619]
[1726940416814,0.45142211,148.57,148.53,6.7325]
[1726940417013,0.12549,148.56,148.51,16.8335]
[1726940417321,0.12549,148.56,148.52,6.9824929]
[1726940418190,0.57691211,148.56,148.52,0.2497929]
[1726940418395,30.634974,148.53,148.52,0.2497929]
[1726940418619,26.98358,148.53,148.52,0.2497929]
[1726940420999,50.760464,148.53,148.52,0.2497929]
[1726940422226,20.0,148.53,148.52,0.2497929]
[1726940422422,26.7326,148.53,148.52,0.2497929]
[1726940423494,26.98358,148.53,148.52,0.2497929]
[1726940424519,51.21188611,148.53,148.52,0.2497929]
[1726940424709,61.18292066,148.53,148.52,0.2497929]
[1726940428009,60.73149855,148.53,148.52,0.2497929]
[1726940428822,50.760464,148.53,148.52,0.2497929]
[1726940429005,51.21188611,148.53,148.52,0.2497929]
[1726940429204,50.760464,148.53,148.52,0.2497929]
[1726940429835,50.634974,148.53,148.52,0.2497929]
[1726940430920,50.760464,148.53,148.52,0.2497929]
[1726940431618,57.78199729,148.53,148.52,0.2497929]
[1726940432739,6.7322,148.54,148.52,0.2497929]
[1726940433429,6.7318,148.55,148.52,0.2497929]
[1726940433634,6.7303,148.58,148.53,6.7325]
[1726940434129,6.7309,148.57,148.52,6.9827929]
[1726940434505,6.7309,148.57,148.52,8.32925631]
[1726940434710,6.7309,148.57,148.53,6.7326]
[1726940435324,0.12549,148.56,148.53,6.7326]
[1726940436319,0.57691211,148.56,148.53,6.7326]
[1726940436713,7.30821211,148.56,148.52,0.2497929]
[1726940438734,7.30821211,148.56,148.52,1.59638414]
[1726940438735,0.12549,148.56,148.52,1.59638414]
[1726940439612,0.12549,148.56,148.53,6.7323]
[1726940444353,0.57691211,148.56,148.53,6.7323]
[1726940444525,0.57691211,148.56,148.52,0.2497929]
[1726940445615,0.12549,148.56,148.52,6.9824929]
[1726940445821,0.12549,148.56,148.53,6.7323]
[1726940447338,20.0,148.57,148.52,1.59626461]
[1726940447535,20.0,148.58,148.53,16.8308]
[1726940448445,20.0,148.6,148.52,0.2497929]
[1726940448619,20.0,148.53,148.52,0.2497929]
[1726940448945,0.25098,148.59,148.54,6.7321]
[1726940449116,0.12549,148.57,148.53,16.8311]
[1726940449445,0.12549,148.55,148.52,0.2497929]
[1726940449639,20.12549,148.55,148.52,0.2497929]
[1726940449837,0.45142211,148.54,148.52,0.2497929]
[1726940450039,0.12549,148.53,148.52,0.2497929]
[1726940450420,0.57691211,148.53,148.52,0.2497929]
[1726940450621,20.70240211,148.53,148.52,0.2497929]
[1726940451429,20.25098,148.53,148.52,0.2497929]
[1726940452628,20.0,148.53,148.52,0.2497929]
[1726940453243,20.0,148.53,148.52,6.9827929]
[1726940453744,6.7309,148.57,148.52,6.9827929]
[1726940454123,20.0,148.56,148.52,6.9827929]
[1726940455049,0.12549,148.55,148.52,6.9827929]
[1726940455560,20.12549,148.57,148.52,6.9827929]
[1726940455716,0.12549,148.56,148.53,6.7325]
[1726940456352,20.12549,148.57,148.53,6.7325]
[1726940457846,20.12549,148.57,148.52,6.9827929]
[1726940458022,0.45142211,148.56,148.52,6.9827929]
[1726940459139,7.18272211,148.56,148.52,0.2497929]
[1726940459623,20.0,148.55,148.52,0.2497929]
[1726940460135,0.45142211,148.54,148.52,0.2497929]
[1726940461227,0.12549,148.54,148.52,0.2497929]
[1726940461740,0.57691211,148.54,148.52,0.2497929]
[1726940461946,7.30931211,148.54,148.52,0.2497929]
[1726940462241,20.12549,148.53,148.52,0.2497929]
[1726940463422,27.43500211,148.53,148.52,0.2497929]
[1726940465249,7.43500211,148.53,148.52,0.2497929]
[1726940465550,20.25098,148.53,148.52,0.2497929]
[1726940467428,27.43500211,148.53,148.52,0.2497929]
[1726940468532,26.98358,148.53,148.52,0.2497929]
[1726940471952,20.12549,148.53,148.52,0.2497929]
[1726940472136,20.57691211,148.53,148.52,0.2497929]
[1726940475030,20.12549,148.53,148.52,0.2497929]
[1726940475349,20.57691211,148.53,148.52,0.2497929]
[1726940476255,20.12549,148.53,148.52,0.2497929]
[1726940476459,7.01589611,148.57,148.52,0.2497929]
[1726940476625,6.7298,148.6,148.55,6.7315]
[1726940476831,13.74255497,148.61,148.56,6.7311]
[1726940477141,6.7291,148.61,148.56,6.7311]
[1726940478231,20.0,148.6,148.56,6.7311]
[1726940480249,0.25098,148.61,148.56,16.8272]
[1726940480462,6.7285,148.62,148.57,1.34604413]
[1726940480641,6.7282,148.63,148.58,6.7303]
[1726940481442,20.0,148.62,148.58,6.7303]
[1726940482056,6.7277,148.64,148.59,6.7299]
[1726940482352,0.12549,148.62,148.59,6.7299]
[1726940482664,0.12549,148.62,148.58,6.7303]
[1726940485159,20.0,148.63,148.59,6.7295]
[1726940485348,20.45142211,148.63,148.59,6.7295]
[1726940485857,0.45142211,148.62,148.55,16.8292]
[1726940486060,35.2778,148.63,148.56,6.7312]
[1726940486255,20.0,148.6,148.57,6.7308]
[1726940486444,20.0,148.63,148.58,6.7302]
[1726940486644,0.45142211,148.62,148.58,6.7302]
[1726940487266,7.18002211,148.62,148.58,6.7302]
[1726940487666,20.0,148.61,148.58,6.7302]
[1726940488458,20.0,148.61,148.57,6.7307]
[1726940491663,20.45142211,148.6,148.56,6.7311]
[1726940492258,20.0,148.6,148.56,6.7311]
[1726940493167,20.45142211,148.6,148.56,6.7311]
[1726940493369,7.18092211,148.6,148.56,6.7311]
[1726940493953,6.7295,148.6,148.56,6.7311]
[1726940494355,0.45142211,148.59,148.56,6.7311]
[1726940495673,6.7295,148.6,148.56,6.7311]
[1726940496246,0.12549,148.62,148.55,16.8292]
[1726940496552,20.25098,148.58,148.52,0.2497929]
[1726940496748,6.7318,148.55,148.52,0.2497929]
[1726940497084,0.45142211,148.54,148.52,0.2497929]
[1726940497451,6.7326,148.53,148.52,0.2497929]
[1726940497778,6.85809,148.53,148.52,0.2497929]
[1726940500752,26.85809,148.53,148.52,0.2497929]
[1726940502076,20.0,148.53,148.52,0.2497929]
[1726940502573,27.43500211,148.53,148.52,0.2497929]
[1726940502770,51.21188611,148.53,148.52,0.2497929]
[1726940502959,50.760464,148.53,148.52,0.2497929]
[1726940504654,57.189364,148.53,148.52,0.2497929]
[1726940506176,64.20948508,148.53,148.52,0.2497929]
[1726940506772,33.75272108,148.53,148.52,0.2497929]
[1726940506955,26.7326,148.53,148.52,0.2497929]
[1726940508274,26.85809,148.53,148.52,0.2497929]
[1726940508580,26.98358,148.53,148.52,0.2497929]
[1726940510779,20.0,148.53,148.52,0.2497929]
[1726940511265,26.7326,148.53,148.52,0.2497929]
[1726940512062,26.98358,148.53,148.52,0.2497929]
[1726940518779,50.760464,148.53,148.52,0.2497929]
[1726940520567,26.7326,148.53,148.52,0.2497929]
[1726940521794,26.98358,148.53,148.52,0.2497929]
[1726940527482,26.48358,148.53,148.52,0.2497929]
[1726940528078,6.732,148.55,148.52,0.2497929]
[1726940528285,6.7322,148.54,148.52,0.2497929]
[1726940528778,0.45142211,148.53,148.52,0.2497929]
[1726940529694,20.45142211,148.53,148.52,0.2497929]
[1726940529892,20.0,148.53,148.52,0.2497929]
[1726940530105,27.43500211,148.53,148.52,0.2497929]
[1726940530601,51.21188611,148.53,148.52,0.2497929]
[1726940531072,50.760464,148.53,148.52,0.2497929]
[1726940533400,51.21188611,148.53,148.52,0.2497929]
[1726940535180,50.760464,148.53,148.52,0.2497929]
[1726940538603,51.21188611,148.53,148.52,0.2497929]
[1726940538901,58.22942983,148.53,148.52,0.2497929]
[1726940539277,80.75832983,148.53,148.52,0.2497929]
[1726940539584,80.75832983,148.53,148.52,9.29e-05]
[1726940539886,67.472874,148.49,148.48,0.2497929]
[1726940541877,67.598364,148.49,148.48,0.2497929]
[1726940542082,75.05283358,148.49,148.48,0.2497929]
[1726940544284,75.50425569,148.49,148.48,0.2497929]
[1726940545906,75.05283358,148.49,148.48,0.2497929]
[1726940546915,75.50425569,148.49,148.48,0.2497929]
[1726940547108,75.05283358,148.49,148.48,0.2497929]
[1726940547287,75.50425569,148.49,148.48,0.2497929]
[1726940547686,75.05283358,148.49,148.48,0.2497929]
[1726940547899,75.50425569,148.49,148.48,0.2497929]
[1726940548786,76.67652605,148.49,148.48,0.2497929]
[1726940549298,83.24698657,148.49,148.48,0.2497929]
[1726940549500,83.69840868,148.49,148.48,0.2497929]
[1726940551785,83.24698657,148.49,148.48,0.2497929]
[1726940561616,83.69840868,148.49,148.48,0.2497929]
[1726940562322,83.24698657,148.49,148.48,0.2497929]
[1726940567902,20.12549,148.44,148.4,21.5837858]
[1726940568421,20.12549,148.44,148.41,15.4974]
[1726940569227,20.0,148.44,148.41,15.4974]
[1726940569410,20.0,148.47,148.43,6.7371]
[1726940569731,6.7349,148.48,148.43,6.7371]
[1726940570802,20.12549,148.47,148.43,6.7371]
[1726940571306,20.12549,148.47,148.44,6.7367]
[1726940572004,20.12549,148.47,148.43,6.737]
[1726940575523,20.12549,148.47,148.43,8.08429798]
[1726940579327,20.12549,148.47,148.43,6.737]
[1726940592416,0.12549,148.45,148.39,17.1976488]
[1726940592619,20.25098,148.43,148.39,17.1976488]
[1726940592933,20.70240211,148.43,148.39,17.1976488]
[1726940593519,20.25098,148.43,148.39,17.1976488]
[1726940594110,20.0,148.44,148.4,1.34765972]
[1726940594813,22.4148,148.48,148.43,6.7368]
[1726940595012,0.12549,148.47,148.43,6.7368]
[1726940596231,20.12549,148.47,148.43,6.7368]
[1726940604847,0.45142211,148.46,148.43,6.7368]
[1726940605824,20.12549,148.47,148.43,6.7368]
[1726940608347,6.7352,148.48,148.42,1.34731408]
[1726940608348,20.0,148.48,148.42,16.71241408]
[1726940608523,7.02247384,148.52,148.45,16.8401]
[1726940608717,6.7331,148.52,148.46,1.34694876]
[1726940609420,6.7331,148.52,148.47,6.7353]
[1726940609820,26.98448,148.51,148.47,6.7353]
[1726940611116,0.45142211,148.5,148.47,6.7353]
[1726940611347,0.25098,148.49,148.45,16.8401]
[1726940611524,20.25098,148.48,148.45,16.8401]
[1726940612516,20.25098,148.48,148.45,23.5762]
[1726940613640,20.0,148.5,148.46,6.7356]
[1726940614032,20.0,148.5,148.47,6.7351]
[1726940617551,20.45142211,148.5,148.47,6.7351]
[1726940618041,20.0,148.5,148.47,6.7351]
[1726940621546,6.9820929,148.54,148.5,6.734]
[1726940622844,20.0,148.53,148.5,6.734]
[1726940623948,20.45142211,148.53,148.5,6.734]
[1726940624148,0.2497929,148.54,148.5,6.734]
[1726940624458,0.12549,148.53,148.5,6.734]
[1726940628347,0.2497929,148.54,148.52,6.7329]
[1726940628548,0.2497929,148.54,148.53,6.7326]
[1726940639228,0.2497929,148.54,148.51,16.8333]
[1726940639427,0.2497929,148.54,148.51,23.5664]
[1726940639946,0.2497929,148.54,148.51,16.8333]
[1726940640155,0.70121501,148.54,148.51,16.8333]
[1726940641339,0.2497929,148.54,148.51,16.8333]
[1726940641544,0.2497929,148.54,148.51,23.5668]
[1726940653559,0.2497929,148.54,148.48,23.5714]
[1726940653560,6.7332,148.52,148.48,23.5714]
[1726940653764,27.18492211,148.51,148.47,6.7352]
[1726940653948,20.0,148.51,148.47,6.7352]
[1726940655247,20.45142211,148.51,148.47,6.7352]
[1726940659271,27.18502211,148.51,148.47,6.7352]
[1726940659471,7.18502211,148.51,148.47,6.7352]
[1726940659657,7.18502211,148.51,148.45,16.8402]
[1726940659658,26.7341,148.5,148.45,16.8402]
[1726940659859,7.31151211,148.49,148.45,16.8402]
[1726940660070,26.7349,148.48,148.43,6.7371]
[1726940660253,0.45142211,148.47,148.43,6.7371]
[1726940661169,26.7349,148.48,148.43,6.7371]
[1726940661374,20.0,148.48,148.45,6.7362]
[1726940662660,20.0,148.48,148.44,6.7366]
[1726940666474,20.45142211,148.48,148.44,6.7366]
[1726940666773,0.12549,148.47,148.44,6.7366]
[1726940667863,20.12549,148.47,148.44,6.7366]
[1726940668665,6.7349,148.48,148.44,6.7366]
[1726940668666,6.85999,148.49,148.44,6.7366]
[1726940668974,20.0,148.48,148.45,6.7361]
[1726940669193,20.0,148.48,148.45,8.08323876]
[1726940669669,20.0,148.49,148.45,6.7361]
[1726940677494,6.7344,148.49,148.45,6.7361]
[1726940677704,20.0,148.48,148.45,6.7361]
[1726940679213,6.7355,148.47,148.41,16.8447]
[1726940679390,7.18692211,148.47,148.41,16.8447]
[1726940679789,7.18692211,148.47,148.42,6.7372]
[1726940681504,0.25098,148.46,148.41,23.5827]
[1726940681808,0.12549,148.46,148.41,23.5827]
[1726940682010,0.12549,148.46,148.41,24.93010608]
[1726940682200,0.12549,148.46,148.42,6.7375]
[1726940682587,26.86089,148.47,148.42,8.08483899]
[1726940682905,26.86089,148.47,148.42,6.7375]